bitfinex-derivatives/quotes_SOLF0:USTF0_20251020
["timestamp","ask_amount","ask_price","bid_price","bid_amount"]
[1760946718495,4.75412042,193.23,193.17,1.06]
[1760946718692,3.92521374,193.22,193.16,4.6583]
[1760946718895,4.75412042,193.23,193.17,1.06]
[1760946719103,3.92521237,193.22,193.16,4.6583]
[1760946719401,4.75412042,193.23,193.17,1.06]
[1760946720301,3.92605512,193.22,193.17,1.06]
[1760946720506,4.75412042,193.23,193.17,1.06]
[1760946720706,3.92605335,193.22,193.16,5.7183]
[1760946720908,4.75412042,193.23,193.16,5.7183]
[1760946721102,3.92605145,193.22,193.16,5.7183]
[1760946721308,4.75412042,193.23,193.16,5.7183]
[1760946722405,4.75412042,193.23,193.17,1.06]
[1760946724907,9.41102042,193.23,193.18,43.02]
[1760946725102,6.80102042,193.23,193.18,43.02]
[1760946725297,2.61,193.22,193.18,43.02]
[1760946726106,2.14412042,193.21,193.18,43.02]
[1760946726999,2.61,193.2,193.18,43.02]
[1760946727913,2.14412042,193.21,193.18,43.02]
[1760946728207,2.61,193.2,193.18,43.02]
[1760946730105,2.61,193.2,193.14,5.719]
[1760946730301,2.61,193.2,193.15,43.02]
[1760946730508,2.61,193.2,193.16,43.02]
[1760946730706,2.61,193.2,193.17,1.06]
[1760946731411,2.61,193.2,193.17,44.08]
[1760946731605,2.61,193.18,193.17,43.02]
[1760946731811,6.54231328,193.18,193.05,1.06]
[1760946732006,2.14412042,193.12,193.05,1.06]
[1760946732211,2.14412042,193.09,193.02,4.6617]
[1760946732409,2.61,193.04,192.98,1.06]
[1760946732711,2.14412042,193.03,192.99,43.02]
[1760946732903,4.6598,193.11,193.0,43.02]
[1760946732904,2.61,193.09,193.0,43.02]
[1760946733101,2.61,193.09,193.01,1.06]
[1760946733305,2.14412042,193.11,193.05,1.07]
[1760946733902,4.91412042,193.11,193.06,26.91]
[1760946734106,7.4292,193.14,193.06,25.84]
[1760946734304,2.14412042,193.13,193.07,1.07]
[1760946734507,2.77,193.14,193.1,3.21412042]
[1760946734708,2.77,193.14,193.11,37.14]
[1760946735309,2.77,193.14,193.11,43.02]
[1760946735504,4.6581,193.18,193.11,43.02]
[1760946735706,6.69891111,193.17,193.11,43.02]
[1760946735911,2.14412042,193.17,193.11,43.02]
[1760946736320,2.77,193.16,193.11,43.02]
[1760946736511,2.14412042,193.17,193.11,43.02]
[1760946736911,2.77,193.15,193.11,43.02]
[1760946737212,2.76,193.16,193.11,43.02]
[1760946737518,3.92776938,193.15,193.11,43.02]
[1760946737712,2.76,193.15,193.11,43.02]
[1760946738118,61.0,193.16,193.11,43.02]
[1760946738306,2.76,193.14,193.11,43.02]
[1760946738510,2.76,193.15,193.11,43.02]
[1760946738717,61.0,193.16,193.11,43.02]
[1760946739017,2.76,193.14,193.11,43.02]
[1760946739218,2.76,193.15,193.11,43.02]
[1760946739618,65.6588,193.16,193.11,43.02]
[1760946739818,2.76,193.14,193.11,43.02]
[1760946740122,2.14412042,193.15,193.11,43.02]
[1760946740417,2.76,193.14,193.11,43.02]
[1760946740616,4.6592,193.14,193.11,43.02]
[1760946740812,2.76,193.13,193.11,43.02]
[1760946741311,2.76,193.11,193.04,43.04]
[1760946741615,4.90412042,193.11,193.03,4.6617]
[1760946741811,4.90412042,193.11,193.04,43.04]
[1760946742016,2.76,193.1,193.03,4.6617]
[1760946742811,2.76,193.1,193.04,43.04]
[1760946743117,2.76,193.1,193.03,4.6617]
[1760946743418,2.76,193.1,193.03,47.7017]
[1760946743807,2.76,193.1,193.03,4.6617]
[1760946744011,2.76,193.1,193.03,47.7017]
[1760946744012,7.42,193.1,193.03,47.7017]
[1760946744213,7.42,193.1,193.03,4.6617]
[1760946744511,2.14412042,193.09,193.03,47.7017]
[1760946744707,2.14412042,193.09,193.03,4.6617]
[1760946745112,2.14412042,193.09,193.03,47.7017]
[1760946745314,2.14412042,193.09,193.03,4.6617]
[1760946745514,2.14412042,193.09,193.03,47.7017]
[1760946745715,2.14412042,193.09,193.03,4.6617]
[1760946746418,2.14412042,193.09,193.03,47.7017]
[1760946746618,2.14412042,193.09,193.03,4.6617]
[1760946746819,7.42,193.1,193.03,47.7017]
[1760946747119,7.42,193.1,193.03,4.6617]
[1760946747317,7.42,193.1,193.04,1.07]
[1760946749421,2.76,193.09,193.03,43.04]
[1760946749719,2.76,193.09,193.03,44.11]
[1760946752021,2.76,193.09,193.03,1.07]
[1760946753117,2.76,193.09,193.03,44.11]
[1760946753719,4.66,193.1,193.04,1.07]
[1760946754320,4.66,193.1,193.04,44.11]
[1760946756226,4.66,193.1,193.04,1.07]
[1760946756427,4.66,193.1,193.04,44.11]
[1760946756626,4.66,193.1,193.04,1.07]
[1760946757128,4.66,193.1,193.04,44.11]
[1760946757320,4.66,193.1,193.04,1.07]
[1760946757522,4.6605,193.08,193.04,44.11]
[1760946757723,7.4205,193.08,193.04,1.07]
[1760946758119,7.4205,193.08,193.02,1.07]
[1760946758322,2.76,193.07,193.04,1.07]
[1760946758624,7.4205,193.08,193.02,43.04]
[1760946759127,7.4205,193.08,193.01,1.07]
[1760946759329,7.4205,193.08,193.01,44.11]
[1760946759533,7.4205,193.08,193.01,1.07]
[1760946760027,7.4205,193.08,193.01,44.11]
[1760946760532,7.4205,193.08,193.01,1.07]
[1760946760928,7.4205,193.08,193.01,44.11]
[1760946761325,7.4205,193.08,193.01,1.07]
[1760946761525,7.4205,193.08,193.01,44.11]
[1760946761926,4.6609,193.07,193.01,1.07]
[1760946762127,2.76,193.06,192.99,4.6626]
[1760946762322,2.76,193.06,192.98,1.07]
[1760946762933,2.76,193.06,192.99,43.04]
[1760946763436,7.4212,193.06,192.98,5.7327]
[1760946763635,7.4212,193.06,192.99,43.04]
[1760946764129,7.4212,193.06,192.98,5.7327]
[1760946764335,7.4212,193.06,192.99,32.74]
[1760946765134,7.4214,193.05,192.98,1.07]
[1760946765532,2.76,193.05,192.98,1.07]
[1760946766933,4.6617,193.04,192.98,1.07]
[1760946767631,2.78,193.02,192.98,1.07]
[1760946768037,4.6617,193.04,192.98,1.07]
[1760946768236,2.78,193.03,192.98,1.07]
[1760946768532,2.78,193.02,192.98,1.07]
[1760946768935,2.78,193.02,192.97,1.07]
[1760946769133,2.78,193.02,192.96,4.6633]
[1760946769328,2.78,193.02,192.97,1.07]
[1760946769731,2.78,193.02,192.96,4.6633]
[1760946769935,2.78,193.02,192.97,1.07]
[1760946770131,2.78,193.02,192.96,5.7333]
[1760946771439,2.78,193.1,193.0,1.07]
[1760946771639,2.78,193.08,193.0,1.07]
[1760946773037,7.4405,193.08,193.0,1.07]
[1760946777140,7.4405,193.08,193.01,1.07]
[1760946779539,7.4405,193.08,193.02,3.3518664]
[1760946780339,7.4405,193.08,193.01,5.732]
[1760946780536,7.4405,193.08,193.02,3.3518664]
[1760946781347,2.78,193.08,193.02,3.3518664]
[1760946783245,2.78,193.08,193.01,5.732]
[1760946784549,2.78,193.08,193.02,1.07]
[1760946784751,2.78,193.08,193.02,4.6618]
[1760946785051,61.0,193.09,193.03,1.07]
[1760946786246,2.78,193.11,193.05,1.07]
[1760946787848,2.78,193.11,193.05,32.11]
[1760946788048,2.78,193.11,193.07,1.07]
[1760946789351,65.6591,193.14,193.07,1.07]
[1760946789550,6.70993343,193.13,193.07,1.07]
[1760946789746,3.92993343,193.12,193.07,1.07]
[1760946789951,2.78,193.13,193.07,1.07]
[1760946790150,2.78,193.11,193.07,1.07]
[1760946790358,2.78,193.13,193.07,1.07]
[1760946790556,2.78,193.11,193.07,1.07]
[1760946790763,2.78,193.13,193.07,1.07]
[1760946791063,2.78,193.1,193.07,1.07]
[1760946793352,2.84,193.13,193.07,4.6606]
[1760946793553,6.771575,193.12,193.08,1.07]
[1760946793762,2.84,193.12,193.07,4.6606]
[1760946794065,2.84,193.12,193.07,47.4324664]
[1760946794263,2.84,193.12,193.07,51.0524664]
[1760946794465,2.84,193.16,193.1,1.07]
[1760946794658,2.84,193.16,193.1,3.3518664]
[1760946794859,2.84,193.16,193.1,4.4218664]
[1760946795260,2.84,193.16,193.1,36.3818664]
[1760946795460,2.84,193.16,193.1,4.4218664]
[1760946795861,2.84,193.16,193.1,40.8618664]
[1760946796163,2.84,193.17,193.11,4.6596]
[1760946799866,2.84,193.17,193.11,37.3596]
[1760946800062,2.84,193.17,193.11,4.6596]
[1760946800266,2.84,193.17,193.11,37.3596]
[1760946800459,2.84,193.17,193.11,4.6596]
[1760946800867,2.84,193.17,193.11,37.3596]
[1760946801067,2.84,193.17,193.11,4.6596]
[1760946801367,2.84,193.17,193.11,47.6796]
[1760946801561,2.84,193.17,193.11,4.6596]
[1760946801966,2.84,193.17,193.11,37.3596]
[1760946802169,2.84,193.17,193.11,4.6596]
[1760946803168,2.72,193.16,193.1,1.07]
[1760946803368,2.72,193.16,193.03,1.07]
[1760946803567,2.72,193.16,193.04,43.02]
[1760946803868,4.6595,193.13,193.06,4.661]
[1760946804168,2.72,193.12,193.05,1.07]
[1760946805760,2.72,193.12,193.05,44.09]
[1760946805960,2.72,193.12,193.05,5.731]
[1760946806369,2.72,193.12,193.05,48.751]
[1760946806565,2.72,193.12,193.05,5.731]
[1760946806766,2.72,193.12,193.05,48.751]
[1760946807670,2.72,193.12,193.05,5.731]
[1760946808071,2.72,193.12,193.05,34.711]
[1760946808267,2.72,193.12,193.05,5.731]
[1760946808671,4.6595,193.13,193.05,5.731]
[1760946808872,2.72,193.1,193.05,1.07]
[1760946809065,2.72,193.1,193.03,32.5017]
[1760946809466,2.72,193.1,193.03,47.6817]
[1760946810072,2.72,193.09,193.03,4.6617]
[1760946810672,4.86530525,193.09,193.03,4.6617]
[1760946812071,4.86530525,193.09,193.03,47.6817]
[1760946812462,4.86530525,193.09,193.03,4.6617]
[1760946812666,4.86530525,193.09,193.03,47.6817]
[1760946812866,4.86530525,193.09,193.03,4.6617]
[1760946813573,4.86530525,193.09,193.03,47.6817]
[1760946813872,4.86530525,193.09,193.03,4.6617]
[1760946814968,4.86530525,193.09,193.03,47.6817]
[1760946815369,2.14530525,193.09,193.03,4.6617]
[1760946815569,4.86530525,193.09,193.03,48.7517]
[1760946815772,2.72,193.09,193.03,48.7517]
[1760946815973,2.72,193.09,193.03,5.7317]
[1760946816274,2.72,193.12,193.05,1.07]
[1760946816469,2.72,193.12,193.05,44.09]
[1760946816671,2.72,193.12,193.06,1.07]
[1760946816975,2.72,193.12,193.06,44.09]
[1760946817174,2.72,193.12,193.06,1.07]
[1760946817777,2.72,193.12,193.06,34.19]
[1760946818175,2.72,193.12,193.06,33.12]
[1760946818370,2.72,193.12,193.05,1.07]
[1760946819078,2.72,193.1,193.03,1.07]
[1760946819274,2.72,193.1,193.03,24.33]
[1760946819476,2.72,193.1,193.03,1.07]
[1760946819876,4.86530525,193.1,193.03,1.07]
[1760946820971,2.72,193.09,193.03,5.7317]
[1760946821378,2.72,193.07,192.99,44.09]
[1760946822378,2.72,193.07,193.0,4.6622]
[1760946822577,2.72,193.07,193.01,1.07]
[1760946822978,6.80530525,193.1,193.03,1.07]
[1760946823184,2.72,193.1,193.03,1.07]
[1760946823579,2.72,193.1,193.03,5.7315]
[1760946824184,4.86530525,193.1,193.03,5.7315]
[1760946824887,6.80550525,193.1,193.03,5.7315]
[1760946825083,2.72,193.09,193.03,5.7315]
[1760946825386,2.72,193.09,193.03,1.07]
[1760946828684,2.72,193.07,193.0,1.07]
[1760946831092,2.14530525,193.06,193.0,1.07]
[1760946831690,2.72,193.05,192.97,5.7331]
[1760946832291,61.0,193.11,192.95,43.02]
[1760946832292,2.14530525,193.02,192.95,4.6636]
[1760946832492,2.72,193.01,192.95,4.6636]
[1760946833395,4.86530525,193.01,192.95,4.6636]
[1760946836888,2.72,193.0,192.93,1.07]
[1760946837488,2.14530525,192.99,192.93,1.07]
[1760946838485,2.72,192.98,192.92,4.6642]
[1760946841892,2.72,192.98,192.93,1.07]
[1760946842101,4.86530525,192.99,192.92,5.7342]
[1760946844092,2.72,192.98,192.92,5.7342]
[1760946846198,2.72,192.98,192.92,1.07]
[1760946847496,4.6629,192.98,192.9,4.6648]
[1760946847702,2.72,192.97,192.89,3.21530525]
[1760946848000,4.86530525,192.97,192.9,28.52]
[1760946848296,2.72,192.94,192.89,43.02]
[1760946848703,2.14530525,192.95,192.89,43.02]
[1760946849105,2.72,192.94,192.87,43.02]
[1760946849905,2.72,192.94,192.86,3.21530525]
[1760946850403,2.14530525,192.93,192.86,44.11]
[1760946851005,2.72,192.93,192.86,44.11]
[1760946851802,2.72,192.93,192.83,5.7363]
[1760946852001,2.72,192.93,192.84,43.04]
[1760946852195,2.72,192.93,192.85,1.07]
[1760946852400,2.72,192.93,192.86,1.07]
[1760946852803,2.72,192.93,192.86,44.11]
[1760946853004,2.72,192.93,192.88,1.07]
[1760946853196,2.72,192.93,192.87,2.14530525]
[1760946853402,2.72,192.93,192.87,4.6654]
[1760946853603,2.72,192.93,192.89,1.07]
[1760946853906,2.72,192.93,192.88,43.04]
[1760946854095,2.72,192.93,192.87,6.81070525]
[1760946854299,2.72,192.93,192.89,1.07]
[1760946854500,2.72,192.93,192.88,43.04]
[1760946854697,2.72,192.93,192.88,1.07]
[1760946854897,2.72,192.93,192.89,1.07]
[1760946855301,2.72,192.93,192.88,2.14530525]
[1760946855500,2.72,192.93,192.88,45.18530525]
[1760946855698,2.72,192.93,192.89,1.07]
[1760946856002,2.72,192.93,192.88,45.18530525]
[1760946856404,2.72,192.93,192.89,1.07]
[1760946856709,63.61,192.95,192.86,2.14530525]
[1760946857006,2.61,192.93,192.85,44.11]
[1760946857207,2.67,192.93,192.85,44.11]
[1760946857399,2.67,192.93,192.85,1.07]
[1760946857607,63.14530525,192.94,192.85,44.11]
[1760946857797,2.67,192.93,192.85,44.11]
[1760946858000,4.6646,192.92,192.85,44.11]
[1760946858197,2.67,192.93,192.85,1.07]
[1760946858397,2.67,192.93,192.85,44.11]
[1760946859003,2.67,192.93,192.85,48.776]
[1760946859202,2.67,192.93,192.85,5.736]
[1760946859404,2.67,192.93,192.85,48.776]
[1760946861002,7.3344,192.93,192.85,48.776]
[1760946861810,7.3344,192.93,192.86,2.14530525]
[1760946862507,2.67,192.92,192.85,1.07]
[1760946863412,2.67,192.92,192.84,43.04]
[1760946863604,2.14530525,192.93,192.84,43.04]
[1760946863806,61.0,192.94,192.84,43.04]
[1760946863807,2.67,192.89,192.84,43.04]
[1760946864112,2.67,192.9,192.84,43.04]
[1760946864507,2.67,192.9,192.82,1.07]
[1760946864706,2.67,192.9,192.82,44.11]
[1760946865009,4.6653,192.89,192.82,1.07]
[1760946865210,4.6653,192.89,192.82,44.11]
[1760946865415,4.6653,192.89,192.82,1.07]
[1760946865606,4.6656,192.88,192.82,43.04]
[1760946865812,7.3356,192.88,192.82,43.04]
[1760946866012,7.3356,192.88,192.81,1.07]
[1760946866215,7.3356,192.88,192.82,43.04]
[1760946867312,2.67,192.93,192.75,1.07]
[1760946867514,65.79624739,192.94,192.82,3.21530525]
[1760946867515,2.67,192.9,192.82,3.21530525]
[1760946867812,4.6653,192.89,192.82,31.29530525]
[1760946868009,4.6653,192.89,192.82,3.21530525]
[1760946868205,2.67,192.88,192.82,3.21530525]
[1760946868915,2.67,192.88,192.82,1.07]
[1760946870214,2.67,192.9,192.83,2.14530525]
[1760946870420,2.67,192.9,192.84,1.07]
[1760946870822,2.67,192.93,192.85,3.35785194]
[1760946871015,2.67,192.93,192.86,1.07]
[1760946871925,7.3343,192.93,192.86,1.07]
[1760946872115,7.3343,192.93,192.84,12.6261]
[1760946872116,2.67,192.92,192.84,7.96]
[1760946872825,2.67,192.92,192.85,1.07]
[1760946876024,4.6649,192.9,192.82,47.7066]
[1760946876229,4.6649,192.9,192.83,1.07]
[1760946879833,7.3354,192.88,192.79,1.07]
[1760946880140,61.0,192.96,192.79,3.35785194]
[1760946880141,2.67,192.91,192.79,3.35785194]
[1760946880324,7.3349,192.91,192.81,1.07]
[1760946880527,2.67,192.91,192.81,1.07]
[1760946880831,7.3354,192.88,192.81,1.07]
[1760946881033,2.67,192.88,192.81,1.07]
[1760946881732,2.67,192.88,192.81,5.7368]
[1760946883534,2.67,192.92,192.84,1.07]
[1760946884440,2.67,192.92,192.84,5.7361]
[1760946884640,2.67,192.92,192.84,1.07]
[1760946884945,4.6636,192.96,192.87,1.07]
[1760946886040,4.6636,192.96,192.89,1.07]
[1760946886235,2.67,192.97,192.89,1.07]
[1760946887036,2.67,192.97,192.89,4.6649]
[1760946887244,2.67,192.97,192.9,1.07]
[1760946893148,3.91382802,192.96,192.9,1.07]
[1760946893451,2.83,192.96,192.89,4.6649]
[1760946894651,4.6632,192.98,192.88,40.6]
[1760946894652,3.35785194,192.98,192.88,40.6]
[1760946894953,2.83,192.96,192.88,40.6]
[1760946895150,3.91476533,192.95,192.88,40.6]
[1760946895350,2.83,192.96,192.88,45.2651]
[1760946895555,2.83,192.96,192.89,1.07]
[1760946896554,2.83,192.96,192.89,5.7349]
[1760946900258,2.83,192.95,192.89,1.07]
[1760946901061,2.83,192.91,192.83,43.02]
[1760946901557,2.83,192.89,192.83,43.02]
[1760946902155,2.83,192.89,192.82,44.09]
[1760946903756,2.83,192.89,192.82,48.7568]
[1760946903951,2.83,192.89,192.83,1.07]
[1760946905657,2.83,192.92,192.83,1.07]
[1760946905859,3.35785194,192.95,192.83,1.07]
[1760946905860,2.83,192.95,192.83,1.07]
[1760946906059,2.83,192.95,192.87,1.07]
[1760946906260,2.83,192.93,192.87,1.07]
[1760946906850,2.83,192.91,192.87,1.07]
[1760946907957,4.6646,192.92,192.87,1.07]
[1760946908156,2.83,192.9,192.87,1.07]
[1760946909655,2.83,192.91,192.86,43.04]
[1760946910058,4.6646,192.92,192.86,43.04]
[1760946910257,2.83,192.91,192.86,43.04]
[1760946910562,4.6646,192.92,192.86,43.04]
[1760946911161,4.6639,192.94,192.87,1.07]
[1760946911459,2.83,192.93,192.87,1.07]
[1760946912662,7.4935,192.96,192.89,1.07]
[1760946912864,2.83,192.96,192.89,1.07]
[1760946913962,2.83,192.96,192.89,5.7349]
[1760946915263,3.90143455,192.95,192.89,5.7349]
[1760946915463,2.83,192.96,192.89,5.7349]
[1760946915664,3.90143379,192.95,192.89,5.7349]
[1760946915860,2.83,192.96,192.89,5.7349]
[1760946916061,3.90143302,192.95,192.89,5.7349]
[1760946916359,2.83,192.96,192.89,5.7349]
[1760946916561,3.90154298,192.95,192.89,5.7349]
[1760946916761,2.83,192.96,192.89,5.7349]
[1760946917062,3.90154297,192.95,192.89,5.7349]
[1760946917258,2.83,192.96,192.89,5.7349]
[1760946917459,2.86,192.94,192.87,4.6655]
[1760946917756,2.86,192.93,192.87,4.6655]
[1760946921267,2.86,192.93,192.87,5.7355]
[1760946923468,4.6639,192.95,192.88,5.7351]
[1760946923671,3.90289097,192.94,192.88,5.7351]
[1760946923969,4.6639,192.95,192.88,5.7351]
[1760946924169,3.90289174,192.94,192.88,5.7351]
[1760946924374,2.86,192.96,192.88,5.7351]
[1760946924565,3.90333813,192.95,192.88,5.7351]
[1760946924763,3.90333813,192.94,192.88,5.7351]
[1760946924962,2.86,192.96,192.88,5.7351]
[1760946925164,3.90333813,192.95,192.88,5.7351]
[1760946925364,3.90333813,192.94,192.88,5.7351]
[1760946925565,2.86,192.96,192.88,5.7351]
[1760946925765,3.88232966,192.95,192.88,5.7351]
[1760946925966,3.88232966,192.94,192.88,5.7351]
[1760946926166,2.86,192.96,192.88,5.7351]
[1760946926366,3.88323735,192.95,192.88,5.7351]
[1760946926569,6.74323735,192.94,192.88,5.7351]
[1760946926772,2.86,192.94,192.88,5.7351]
[1760946929272,2.86,192.92,192.88,5.7351]
[1760946929974,4.6636,192.96,192.88,5.7351]
[1760946930273,6.74481549,192.95,192.88,5.7351]
[1760946930469,2.86,192.93,192.88,5.7351]
[1760946930674,4.6636,192.96,192.88,5.7351]
[1760946930874,4.79215226,192.98,192.88,5.7351]
[1760946930875,2.86,192.94,192.88,1.07]
[1760946931075,2.86,192.92,192.89,39.16]
[1760946931375,3.88321576,192.91,192.89,39.16]
[1760946931671,2.86,192.9,192.89,39.16]
[1760946932775,5.00970416,192.9,192.89,39.16]
[1760946933578,9.67470416,192.9,192.82,4.6666]
[1760946933876,2.14970416,192.9,192.84,43.02]
[1760946934073,2.86,192.89,192.84,43.02]
[1760946934372,2.14970416,192.87,192.84,43.02]
[1760946934574,2.86,192.86,192.81,44.09]
[1760946934774,2.14970416,192.87,192.81,44.09]
[1760946935073,5.00970416,192.87,192.81,44.09]
[1760946936074,9.67530416,192.87,192.81,44.09]
[1760946937578,2.86,192.83,192.79,44.09]
[1760946937779,5.00970416,192.81,192.78,43.02]
[1760946938074,2.86,192.8,192.78,43.02]
[1760946938674,2.86,192.8,192.73,1.07]
[1760946938969,7.5266,192.83,192.75,1.07]
[1760946939674,2.86,192.83,192.75,1.07]
[1760946939876,5.00970416,192.87,192.77,1.07]
[1760946940983,9.67530416,192.87,192.77,1.07]
[1760946941481,7.5256,192.87,192.77,1.07]
[1760946941677,2.86,192.87,192.8,1.07]
[1760946941879,2.86,192.87,192.81,45.18970416]
[1760946944982,2.86,192.87,192.81,43.04]
[1760946945681,4.6654,192.88,192.82,1.07]
[1760946948286,4.6654,192.88,192.83,2.14970416]
[1760946948487,4.6654,192.88,192.84,1.07]
[1760946948782,2.86,192.89,192.84,1.07]
[1760946948981,2.64,192.91,192.81,43.04]
[1760946949181,2.64,192.89,192.81,43.04]
[1760946949381,2.64,192.87,192.81,43.04]
[1760946951690,4.6663,192.85,192.81,43.04]
[1760946951894,2.64,192.84,192.81,43.04]
[1760946952094,4.6663,192.85,192.81,43.04]
[1760946952397,2.64,192.84,192.81,43.04]
[1760946952993,4.6663,192.85,192.81,43.04]
[1760946953193,7.3063,192.85,192.79,43.04]
[1760946954596,7.3063,192.85,192.78,1.07]
[1760946954796,7.3063,192.85,192.79,43.04]
[1760946955199,7.3063,192.85,192.78,1.07]
[1760946955400,7.3063,192.85,192.79,43.04]
[1760946956095,7.3063,192.85,192.78,1.07]
[1760946956294,7.3063,192.85,192.79,43.04]
[1760946959201,2.64,192.89,192.81,1.07]
[1760946959398,3.99330881,192.88,192.81,1.07]
[1760946959594,2.64,192.89,192.81,1.07]
[1760946959798,3.99200693,192.88,192.81,44.11]
[1760946959996,2.64,192.89,192.81,44.11]
[1760946960196,3.99099182,192.88,192.81,44.11]
[1760946960498,4.666,192.86,192.81,44.11]
[1760946960692,2.64,192.85,192.81,44.11]
[1760946961200,2.64,192.85,192.82,1.07]
[1760946961601,4.666,192.86,192.82,1.07]
[1760946962098,7.306,192.86,192.82,1.07]
[1760946962290,4.6652,192.89,192.84,2.14970416]
[1760946962495,7.3052,192.89,192.85,1.07]
[1760946962799,2.64,192.88,192.85,1.07]
[1760946962992,4.6652,192.89,192.86,1.07]
[1760946963394,7.3052,192.89,192.86,1.07]
[1760946963996,4.6652,192.89,192.84,43.04]
[1760946964198,2.64,192.88,192.84,44.11]
[1760946964495,2.64,192.88,192.84,1.07]
[1760946965799,2.64,192.87,192.84,1.07]
[1760946968999,4.6655,192.88,192.82,1.07]
[1760946969202,4.6655,192.88,192.82,44.11]
[1760946969400,7.3055,192.88,192.82,44.11]
[1760946969705,7.3055,192.88,192.82,1.07]
[1760946971206,4.6649,192.9,192.82,1.07]
[1760946971401,3.99374539,192.89,192.82,1.07]
[1760946971600,3.99374539,192.88,192.82,1.07]
[1760946971805,4.6649,192.9,192.82,43.02]
[1760946972005,3.99382826,192.89,192.83,1.07]
[1760946972303,3.99382826,192.88,192.83,1.07]
[1760946972497,7.3049,192.9,192.83,1.07]
[1760946972694,2.64,192.9,192.83,1.07]
[1760946972900,4.6644,192.92,192.83,1.07]
[1760946973100,3.99518089,192.91,192.85,1.07]
[1760946973295,2.82,192.96,192.87,1.07]
[1760946973502,7.93774158,192.95,192.89,1.07]
[1760946973701,6.81691197,192.94,192.9,1.07]
[1760946973998,6.81691197,192.93,192.89,20.81]
[1760946974304,2.82,192.93,192.9,1.07]
[1760946974503,2.82,192.94,192.86,1.07]
[1760946974700,2.82,192.92,192.86,11.25]
[1760946975003,2.82,192.9,192.86,11.25]
[1760946975206,2.82,192.92,192.86,11.25]
[1760946975502,2.82,192.9,192.86,11.25]
[1760946975803,2.82,192.9,192.84,29.1863]
[1760946976009,2.82,192.9,192.85,1.07]
[1760946976302,2.82,192.9,192.84,38.9463]
[1760946976705,7.4842,192.93,192.85,1.07]
[1760946976905,3.99745722,192.92,192.85,1.07]
[1760946977203,3.99745722,192.91,192.85,1.07]
[1760946977408,7.4842,192.93,192.85,1.07]
[1760946977607,3.99715661,192.92,192.85,1.07]
[1760946977906,7.4842,192.93,192.85,1.07]
[1760946978107,3.99737407,192.92,192.85,1.07]
[1760946978308,7.4842,192.93,192.85,1.07]
[1760946978507,3.99711704,192.92,192.85,1.07]